Cogmind - Beta 9.5 @@@ ROGUE MODE // 2020.04.03 @ 20:20:14 // AFD2020/Player2 Player: Finestep Result: Destroyed by Y-54 Guardian with Gatling Laser Performance ------------- Evolutions (3) 1500 Regions Visited (11) 2200 Robots Destroyed (99) 495 Value Destroyed (4507) 4507 Prototype IDs (28) 560 Alien Tech Used (0) 0 Bonus (5105) 5105 TOTAL SCORE: 14367 Bonus ------- Triggered High Security 500 High Alert Combat Kills 1344 Follower Combat Kills 2929 Entered Garrisons 600 Used RIF Installer 1000 Aligned with FarCom 300 Friendly Fire -1568 Cogmind --------- Core Integrity 0/700 Matter 265/300 Energy 310/310 System Corruption 9% Temperature Cool (21) Movement Rolling (100) Ox1 Location -7/Factory Parts ------- > --- POWER (1) -------- Heavy Deuterium Engine > --- PROPULSION (3) --- Armored Wheel Centrium Wheel Centrium Wheel > --- UTILITY (6) ------ Large Storage Unit Large Storage Unit Large Storage Unit Advanced Targeting Computer Relay Coupler [NC] (13) Relay Coupler [Sentry] (6) > --- WEAPON (3) ------- Mini Assault Cannon Remote Datajack Chainsword > --- INVENTORY (22) --- Micro Nuclear Core Improved Titanium Leg Combat Airjet Combat Airjet Combat Airjet Combat Airjet Combat Airjet Improved Heat Sink High-capacity Battery (400) Improved Medium Armor Plating Powered Armor Powered Armor Relay Coupler [NC] (23) Relay Coupler [Sentry] (26) Relay Coupler [Demolisher] (20) Firepult Autogun Flak Cannon Advanced EMP Blaster Proton Missile Launcher Heavy Rocket Launcher Peak State ------------ > --- POWER ------------ Light Angular Momentum Engine > --- PROPULSION ------- Improved Carbon-fiber Leg Centrium Wheel Centrium Wheel > --- UTILITY ---------- Improved Cooling System Large Storage Unit Large Storage Unit Large Storage Unit Advanced Targeting Computer Improved Medium Armor Plating > --- WEAPON ----------- Ion Cannon Flak Gun Mini Assault Cannon > --- INVENTORY -------- Micro Nuclear Core Improved Titanium Leg Combat Airjet Combat Airjet Combat Airjet Combat Airjet Combat Airjet High-capacity Battery Improved Medium Armor Plating Powered Armor Powered Armor Relay Coupler [Sentry] Relay Coupler [Sentry] Ion Cannon Firepult Advanced Assault Cannon Proton Missile Launcher Heavy Rocket Launcher Remote Datajack Remote Datajack Chainsword [Rating: 59] Favorites ----------- Power Light Nuclear Core Engine Light Angular Momentum Engine Power Core Light Nuclear Core Propulsion Armored Treads Treads Armored Treads Leg Carbon-fiber Leg Wheel Centrium Wheel Utility Large Storage Unit Device Improved Cooling System Storage Large Storage Unit Processor Advanced Targeting Computer Hackware Relay Coupler [Sentry] Protection Improved Medium Armor Plating Weapon Ion Cannon Energy Gun EM Pulse Gun Energy Cannon Ion Cannon Ballistic Gun Gauss Rifle Ballistic Cannon Mini Assault Cannon Launcher Heavy Rocket Launcher Special Weapon Remote Datajack Slashing Weapon Chainsword Build | -11 -10 -10 -10 -9 -8 -8 -7 -7 -7 -7 -7 ------- Run | Scr Mat Min Exi Min Mat Gar Fac Gar Fac Gar Fac Slots Evolved 6 | . . . . . 4 . 2 . . . . Power . | . . . . . . . . . . . . Propulsion 1 | . . . . . 1 . . . . . . Utility 4 | . . . . . 2 . 2 . . . . Weapon 1 | . . . . . 1 . . . . . . Parts Attached 147 | 8 9 1 . 3 25 7 25 22 20 17 10 Power 12 | 1 1 . . . 2 1 1 1 2 1 2 Engine 9 | 1 1 . . . . . 1 1 2 1 2 Core 3 | . . . . . 2 1 . . . . . Reactor . | . . . . . . . . . . . . Propulsion 34 | 3 4 . . . 7 3 7 3 5 2 . Treads 16 | 2 2 . . . 6 3 2 . . 1 . Leg 11 | . . . . . . . 5 3 3 . . Wheel 7 | 1 2 . . . 1 . . . 2 1 . Hover . | . . . . . . . . . . . . Flight . | . . . . . . . . . . . . Utility 42 | 1 3 . . 1 10 1 7 5 6 5 3 Device 7 | . . . . . 2 . 2 . 1 2 . Storage 6 | 1 2 . . 1 2 . . . . . . Processor 2 | . . . . . . . 1 . 1 . . Hackware 11 | . . . . . . . 2 3 1 2 3 Protection 16 | . 1 . . . 6 1 2 2 3 1 . Artifact . | . . . . . . . . . . . . Weapon 59 | 3 1 1 . 2 6 2 10 13 7 9 5 Energy Gun 7 | 2 1 . . . 3 1 . . . . . Energy Cannon 6 | . . 1 . . . . 2 2 1 . . Ballistic Gun 17 | 1 . . . 1 3 1 5 3 1 2 . Ballistic Cannon 7 | . . . . . . . 1 1 1 3 1 Launcher 8 | . . . . . . . 2 1 2 1 2 Special Weapon 10 | . . . . 1 . . . 4 2 2 1 Impact Weapon . | . . . . . . . . . . . . Slashing Weapon 4 | . . . . . . . . 2 . 1 1 Piercing Weapon . | . . . . . . . . . . . . Special Melee Weapon . | . . . . . . . . . . . . Unidentified Prototypes 5 | . . . . . 1 . 1 . 1 . 2 Parts Lost 16 | . 2 1 . . 4 2 1 . . 6 . Power 1 | . . . . . 1 . . . . . . Propulsion 2 | . . . . . 1 . . . . 1 . Utility 4 | . 1 . . . 1 . . . . 2 . Weapon 9 | . 1 1 . . 1 2 1 . . 3 . Highest Loss Streak 3 | . 1 1 . . 2 1 1 . . 3 . Average Slot Usage (%) 97 | . 95 100 100 100 99 100 92 98 99 98 100 Engine 6 | . 13 14 14 14 1 . 1 7 7 7 7 Core 2 | . . . . . 7 9 5 . . . . Treads 10 | . 14 14 14 14 22 27 15 . . 3 . Leg 7 | . . . . . . . 7 23 22 . . Wheel 6 | . 14 14 14 14 4 . . . . 17 23 Device 2 | . . . . . 3 . 4 . . 6 2 Storage 23 | . 20 28 28 28 22 27 23 23 23 23 23 Processor 3 | . . . . . . . 2 7 7 7 7 Hackware 2 | . . . . . . . . 5 6 1 9 Protection 5 | . 3 . . . 10 9 6 6 7 5 2 Energy Gun 3 | . 14 11 . . 6 9 1 . . . . Energy Cannon 5 | . . 2 14 14 2 . 9 4 7 4 . Ballistic Gun 10 | . 14 14 14 12 17 18 10 9 2 2 2 Ballistic Cannon 3 | . . . . . . . . 5 7 12 8 Special Weapon 1 | . . . . 1 . . . 2 4 1 5 Naked Turns . | . . . . . . . . . . . . Heaviest Build 92 | 12 32 33 33 57 81 71 92 92 83 84 79 Greatest Support 60 | 40 20 16 16 16 60 60 60 50 48 44 44 Greatest Overweight (x) 4 | 2 2 2 2 3 4 1 3 1 4 2 1 Average Overweight (x) 1 | . 1 1 2 2 2 1 1 1 1 1 1 Largest Inventory Capacity 22 | 6 14 14 14 18 22 22 22 22 22 22 22 Average Capacity 19 | 5 10 14 14 15 19 22 22 22 22 22 22 Most Carried 22 | 6 11 11 14 16 22 22 22 22 22 22 22 Average Carried 18 | 2 6 10 11 14 16 21 21 21 21 20 21 Final Capacity 22 | 6 14 14 14 18 22 22 22 22 22 22 22 Final Carried 22 | 6 11 10 14 16 22 22 22 22 22 22 22 Class Distribution -------------------- 23% | Hauler-Skirmisher 22% | Mutant 22% | Bothacker-Skirmisher 16% | Hauler-Mutant 7% | Bothacker-Mutant 3% | Skirmisher Dominant Class ---------------- Mutant | -10/Materials Mutant | -10/Mines Mutant | -10/Exiles Mutant | -9/Mines Hauler-Skirmisher | -8/Materials Hauler-Skirmisher | -8/Garrison Bothacker-Skirmisher | -7/Factory Bothacker-Mutant | -7/Garrison Hauler-Mutant | -7/Factory Hauler-Mutant | -7/Garrison Bothacker-Mutant | -7/Factory Resources | -11 -10 -10 -10 -9 -8 -8 -7 -7 -7 -7 -7 ----------- Run | Scr Mat Min Exi Min Mat Gar Fac Gar Fac Gar Fac Matter Collected 3502 | 222 200 27 . 13 588 243 515 466 452 535 241 Remotely . | . . . . . . . . . . . . Salvage Created 4100 | 102 415 74 . 50 845 317 848 438 372 419 220 Parts 219 | 7 24 4 . 2 58 16 39 26 20 15 8 Haulers Intercepted 5 | . 2 . . . 2 . . . . . 1 Recyclers Shooed 2 | . . . . . 1 . . . . . 1 Parts Field Recycled . | . . . . . . . . . . . . Retrieved Matter . | . . . . . . . . . . . . Parts Self-Destructed . | . . . . . . . . . . . . Prevented . | . . . . . . . . . . . . Kills | -11 -10 -10 -10 -9 -8 -8 -7 -7 -7 -7 -7 ------- Run | Scr Mat Min Exi Min Mat Gar Fac Gar Fac Gar Fac Combat Hostiles Destroyed 74 | . 6 2 . . 14 9 13 6 8 11 5 Guns 37 | . 6 1 . . 13 9 6 1 1 . . Cannons 24 | . . 1 . . 1 . 3 3 7 8 1 AOE 13 | . . . . . . . 4 2 . 3 4 Classes Destroyed 15 | 2 4 1 . . 7 . 1 . . . . Worker 4 | . . . . . 2 . 1 . . . 1 Builder 1 | . . . . . 1 . . . . . . Tunneler 1 | 1 . . . . . . . . . . . Hauler 5 | . 2 . . . 2 . . . . . 1 Recycler 5 | 1 . . . . 2 . 2 . . . . Mechanic 1 | . . . . . 1 . . . . . . Operator 3 | . 1 . . . 1 . . . . . 1 Watcher 5 | . 1 . . . 2 . 1 . 1 . . Swarmer 20 | . . 1 . . 6 3 . 2 2 6 . Grunt 30 | . 6 1 . . 3 3 6 3 2 2 4 Brawler 3 | . . . . . 1 . 2 . . . . Duelist 5 | . . . . . 1 1 1 . 1 1 . Sentry 7 | . . . . . 2 1 2 . 2 . . Hunter 6 | . . . . . 1 1 . 1 . 2 1 Programmer 3 | . . . . . . . 2 . 1 . . Best Kill Streak 5 | 2 3 1 . . 4 3 5 2 3 3 5 Combat Bots Only 4 | . 2 1 . . 3 3 3 2 3 3 4 Max Kills in Single Turn 4 | 1 1 1 . . 2 2 4 2 1 3 4 Gunslinging 1 | . . . . . . 1 . . . . . Exploded 3 | . . . . . . . 2 2 . 3 3 Melee . | . . . . . . . . . . . . Uniques/NPCs Destroyed . | . . . . . . . . . . . . Combat | -11 -10 -10 -10 -9 -8 -8 -7 -7 -7 -7 -7 -------- Run | Scr Mat Min Exi Min Mat Gar Fac Gar Fac Gar Fac Damage Taken 5137 | . 624 263 . . 1116 457 382 715 387 1025 168 Core 491 | . 115 67 . . 49 53 . 62 77 45 23 Absorbed by Shields 77 | . . . . . . 31 . 27 . 19 . Core Remaining (%) 56 | 100 . . . 18 . 52 . . . . . Volleys Fired 343 | 7 55 22 . 4 63 29 38 28 35 41 21 Largest 3 | 2 2 2 . 2 3 3 3 3 3 3 3 Hottest 168 | 70 70 80 . 100 143 114 149 168 136 168 119 Shots Fired 759 | 14 109 41 . 7 187 61 110 49 77 75 29 Gun 485 | 14 109 32 . 3 162 61 58 21 18 3 4 Cannon 231 | . . 9 . 3 25 . 50 15 51 64 14 Launcher 12 | . . . . . . . 2 1 3 3 3 Special 31 | . . . . 1 . . . 12 5 5 8 Kinetic 447 | 7 55 22 . 3 121 36 57 34 45 49 18 Thermal 237 | 7 31 9 . 4 66 25 51 2 24 18 . Explosive 6 | . . . . . . . 2 1 . 3 . Electromagnetic 39 | . 23 10 . . . . . . 3 . 3 Robot Hit Streak 17 | 4 14 8 . 2 17 6 9 8 11 6 7 Robot Miss Streak 5 | 2 4 3 . 1 5 4 4 4 4 4 2 Penetration Max 1 | . . . . . . . 1 1 . . . Secondary Targets 5 | . 1 . . . 2 2 . . . . . Max Gunslinging Chain 1 | . 1 . . . 1 1 . . . . . Shots Hit Robots 485 | 9 71 27 . 4 129 38 61 39 47 43 17 Core Hits 220 | 4 27 5 . 1 55 16 32 19 27 22 12 Critical Hits 3 | . . . . . . . . 1 1 1 . Critical Kills 3 | . . . . . . . . 1 1 1 . Critical Parts Destroyed . | . . . . . . . . . . . . Melee Attacks 16 | . . . . . . . . 11 . 5 . Impact . | . . . . . . . . . . . . Slashing 16 | . . . . . . . . 11 . 5 . Piercing . | . . . . . . . . . . . . Sneak Attacks . | . . . . . . . . . . . . Combat Hostiles . | . . . . . . . . . . . . Follow-up Attacks . | . . . . . . . . . . . . Damage Inflicted 10983 | 106 697 271 . 67 1678 541 1874 1743 1169 1539 1298 Guns 4427 | 106 697 200 . 16 1433 526 853 311 205 18 62 Cannons 2860 | . . 71 . 51 245 . 491 163 758 818 263 Explosions 2155 | . . . . . . . 530 156 206 290 973 Melee 1526 | . . . . . . . . 1113 . 413 . Ramming 15 | . . . . . . 15 . . . . . Kinetic 4921 | 44 296 122 . 16 1089 347 809 452 726 695 325 Thermal 2959 | 62 213 71 . 51 589 179 535 22 237 141 859 Explosive 976 | . . . . . . . 530 156 . 290 . Electromagnetic 586 | . 188 78 . . . . . . 206 . 114 Impact . | . . . . . . . . . . . . Slashing 1526 | . . . . . . . . 1113 . 413 . Piercing . | . . . . . . . . . . . . Highest Corruption 9 | . . . . . 4 4 2 2 2 2 9 Average Corruption 2 | . . . . . 2 4 1 2 2 2 6 Corruption Purged . | . . . . . . . . . . . . Effects 72 | . . . . . 9 19 2 7 13 7 15 Message Errors 17 | . . . . . 1 3 . 1 4 3 5 Matter Fused 9 | . . . . . 1 5 . . . . 3 Heat Flow Errors 9 | . . . . . 2 2 . 2 1 . 2 Energy Discharges 8 | . . . . . 2 . . 1 4 1 . Parts Rejected 1 | . . . . . . 1 . . . . . Data Loss (minor) 6 | . . . . . . 1 . 2 3 . . Data Loss (major) 1 | . . . . . . . . . . . 1 Targeting Errors 18 | . . . . . 3 7 2 . . 2 4 Weapon Failures 3 | . . . . . . . . 1 1 1 . Overload Shots . | . . . . . . . . . . . . Overflow Damage 274 | . . . . . . . 9 131 13 28 93 Projectiles 28 | . . . . . . . . . 13 12 3 Explosions 99 | . . . . . . . 9 . . . 90 Melee 147 | . . . . . . . . 131 . 16 . Knockbacks 14 | . . . . . . . . . 2 10 2 Impact . | . . . . . . . . . . . . Kinetic 13 | . . . . . . . . . 2 9 2 Secondary 1 | . . . . . . . . . . 1 . Self-Inflicted Damage 86 | . . . . . . . . . . 86 . Shots 2 | . . . . . . . . . . 2 . Rammed 3 | . . . . . . 3 . . . . . Targets Rammed 3 | . . . . . . 3 . . . . . Kicked . | . . . . . . . . . . . . Crushed . | . . . . . . . . . . . . Highest Temperature 368 | 60 314 289 . 60 368 216 180 251 357 70 264 Average Temperature 73 | 29 77 95 . 26 86 65 40 83 93 20 70 Received Heat Transfer 1313 | . 294 129 . . 360 107 45 177 72 75 54 Effects 3 | . . 1 . . 2 . . . . . . Interference 3 | . . 1 . . 2 . . . . . . Siege Activations . | . . . . . . . . . . . . Robots Corrupted . | . . . . . . . . . . . . Combat Hostiles . | . . . . . . . . . . . . Parts Fried 3 | . 1 . . . . . . . . 1 1 Impact Corruptions . | . . . . . . . . . . . . Robots Melted . | . . . . . . . . . . . . Combat Hostiles . | . . . . . . . . . . . . Parts Melted 3 | . . . . . . 1 . . . 1 1 Heat Transferred 4452 | 185 601 148 . 111 1193 314 813 37 370 194 486 Parts Sabotaged . | . . . . . . . . . . . . Parts Stolen . | . . . . . . . . . . . . Parts Stripped . | . . . . . . . . . . . . Power Chain Reactions . | . . . . . . . . . . . . Missiles Intercepted . | . . . . . . . . . . . . Alert | -11 -10 -10 -10 -9 -8 -8 -7 -7 -7 -7 -7 ------- Run | Scr Mat Min Exi Min Mat Gar Fac Gar Fac Gar Fac Peak Influence 1756 | 10 598 237 . 12 898 1042 1393 1756 1330 1701 1230 Average Influence 850 | 2 386 192 . 6 487 820 802 1371 1126 1413 1054 Maximum Alert Level 5 | . 2 1 . . 3 3 4 5 4 5 4 Low Security (%) 8 | 100 14 38 . 100 14 . . . . . . Level 1 8 | . 30 61 . . 16 . . . . . . Level 2 21 | . 55 . . . 56 13 44 . . . . Level 3 29 | . . . . . 12 86 39 12 40 29 53 Level 4 26 | . . . . . . . 16 74 59 36 46 Level 5 3 | . . . . . . . . . . 34 . High Security 1 | . . . . . . . . 12 . . . Max Security . | . . . . . . . . . . . . Squads Dispatched 38 | . 5 . . . 6 . 12 4 7 . 4 Investigation 9 | . 3 . . . 1 . 3 . 1 . 1 Extermination 4 | . . . . . . . 2 . 2 . . Reinforcement 10 | . 2 . . . 3 . . . 2 . 3 Assault 10 | . . . . . 1 . 3 4 2 . . Garrison 5 | . . . . . 1 . 4 . . . . Intercept . | . . . . . . . . . . . . Construction Impeded 5 | . . . . . 2 . . . 2 . 1 Haulers Reinforced 1 | . . . . . . . . . . . 1 Stealth | -11 -10 -10 -10 -9 -8 -8 -7 -7 -7 -7 -7 --------- Run | Scr Mat Min Exi Min Mat Gar Fac Gar Fac Gar Fac Distress Signals 7 | . 2 1 . . 2 . 1 . 1 . . Communications Jammed . | . . . . . . . . . . . . Distress Signals . | . . . . . . . . . . . . Times Spotted 217 | . 21 5 . . 45 16 36 23 29 32 10 Peak Tracking Total 9 | . 5 3 . . 6 8 6 4 4 9 2 Tactical Retreats 2 | . . . . . . 1 . 1 . . . Traps | -11 -10 -10 -10 -9 -8 -8 -7 -7 -7 -7 -7 ------- Run | Scr Mat Min Exi Min Mat Gar Fac Gar Fac Gar Fac Traps Triggered 19 | . 2 . . . . 3 4 2 . 4 4 Indirectly . | . . . . . . . . . . . . Trap Hack Attempts . | . . . . . . . . . . . . Triggered . | . . . . . . . . . . . . Disarmed . | . . . . . . . . . . . . Reprogrammed . | . . . . . . . . . . . . Reused . | . . . . . . . . . . . . Traps Extracted . | . . . . . . . . . . . . Installed . | . . . . . . . . . . . . Triggered . | . . . . . . . . . . . . Machines | -11 -10 -10 -10 -9 -8 -8 -7 -7 -7 -7 -7 ---------- Run | Scr Mat Min Exi Min Mat Gar Fac Gar Fac Gar Fac Machines Disabled 25 | . 4 . . . 3 1 3 2 1 2 9 Max in Single Turn 5 | . 1 . . . 1 1 1 1 . 1 5 Garrison Access 1 | . . . . . . . 1 . . . . Garrison Relay 5 | . . . . . . 1 . 2 . 2 . Machines Sabotaged . | . . . . . . . . . . . . Garrisons Compromised . | . . . . . . . . . . . . Overloaded Fab Kills . | . . . . . . . . . . . . Fab Network Shutdowns . | . . . . . . . . . . . . Hacking | -11 -10 -10 -10 -9 -8 -8 -7 -7 -7 -7 -7 --------- Run | Scr Mat Min Exi Min Mat Gar Fac Gar Fac Gar Fac Machines Accessed 26 | . 6 . 2 . 7 . 6 . 4 . 1 Terminals 15 | . 4 . . . 5 . 4 . 1 . 1 Fabricators 1 | . . . . . . . . . 1 . . Repair Stations . | . . . . . . . . . . . . Recycling Units 4 | . 2 . . . 1 . . . 1 . . Scanalyzers 1 | . . . . . . . 1 . . . . Garrison Access 3 | . . . . . 1 . 1 . 1 . . Total Hacks 73 | . 13 . 5 . 26 . 19 . 8 . 2 Successful 40 | . 5 . 5 . 17 . 9 . 4 . . Failed 33 | . 8 . . . 9 . 10 . 4 . 2 Catastrophic 9 | . 3 . . . 2 . 2 . 1 . 1 Database Lockouts . | . . . . . . . . . . . . Manual 24 | . 7 . 1 . 14 . 1 . 1 . . Terminals 48 | . 8 . . . 23 . 13 . 2 . 2 Fabricators 2 | . . . . . . . . . 2 . . Repair Stations . | . . . . . . . . . . . . Recycling Units 9 | . 5 . . . 2 . . . 2 . . Scanalyzers 5 | . . . . . . . 5 . . . . Garrison Access 4 | . . . . . 1 . 1 . 2 . . Terminal Hacks 16 | . 1 . 5 . 7 . 3 . . . . Record 4 | . . . 4 . . . . . . . . Branch Access Points 1 | . . . . . 1 . . . . . . Garrison Index 1 | . . . . . . . 1 . . . . Locate Traps 2 | . . . . . 2 . . . . . . Hauler Manifests 2 | . 1 . . . 1 . . . . . . Registered Components 1 | . . . . . 1 . . . . . . Zone Layout 4 | . . . . . 2 . 2 . . . . EX-Prototype ID Bank 1 | . . . 1 . . . . . . . . Fabricator Hacks 1 | . . . . . . . . . 1 . . Build 1 | . . . . . . . . . 1 . . Repair Station Hacks . | . . . . . . . . . . . . Recycling Unit Hacks 3 | . 2 . . . . . . . 1 . . Retrieve Components 3 | . 2 . . . . . . . 1 . . Scanalyzer 4 | . . . . . . . 4 . . . . Insert Component 2 | . . . . . . . 2 . . . . Analyze 2 | . . . . . . . 2 . . . . Garrison Access Hacks 3 | . . . . . 1 . 1 . 1 . . Unlock Access 3 | . . . . . 1 . 1 . 1 . . Unauthorized Hacks 28 | . 6 . . . 18 . 2 . 2 . . Terminals 10 | . . . . . 9 . 1 . . . . Track 4 | . . . . . 4 . . . . . . Botnet 5 | . . . . . 4 . 1 . . . . Disrupt 1 | . . . . . 1 . . . . . . Fabricators . | . . . . . . . . . . . . Repair Stations . | . . . . . . . . . . . . Recycling Units 2 | . 2 . . . . . . . . . . Tunnel 2 | . 2 . . . . . . . . . . Scanalyzers . | . . . . . . . . . . . . Garrison Access 1 | . . . . . . . . . 1 . . Eject 1 | . . . . . . . . . 1 . . Data Cores Recovered 1 | . . . . . 1 . . . . . . Used . | . . . . . . . . . . . . Hacking Detections 20 | . 4 . . . 6 . 5 . 4 . 1 Full Trace Events 5 | . 1 . . . 1 . 2 . . . 1 Feedback Events 2 | . . . . . 1 . . . . . 1 Corruption 2 | . . . . . 1 . . . . . 1 Feedback Blocked . | . . . . . . . . . . . . Robot Schematics Acquired . | . . . . . . . . . . . . Robots Built . | . . . . . . . . . . . . Matter . | . . . . . . . . . . . . Time . | . . . . . . . . . . . . Total Robot Build Rating . | . . . . . . . . . . . . Part Schematics Acquired 2 | . . . . . . . 2 . . . . Parts Built 2 | . . . . . . . . . 2 . . Matter 234 | . . . . . . . . . 234 . . Time 58 | . . . . . . . . . 58 . . Total Part Build Rating 14 | . . . . . . . . . 14 . . Parts Repaired . | . . . . . . . . . . . . Time . | . . . . . . . . . . . . Parts Recycled . | . . . . . . . . . . . . Recycled Matter . | . . . . . . . . . . . . Retrieved Matter . | . . . . . . . . . . . . Retrieved Components 7 | . 3 . . . . . . . 4 . . Parts Scanalyzed 2 | . . . . . . . 2 . . . . Part Schematics Acquired 2 | . . . . . . . 2 . . . . Parts Damaged . | . . . . . . . . . . . . Bothacking | -11 -10 -10 -10 -9 -8 -8 -7 -7 -7 -7 -7 ------------ Run | Scr Mat Min Exi Min Mat Gar Fac Gar Fac Gar Fac Used RIF Installer 2 | . . . . . . 1 . . . 1 . Robot Detection 1 | . . . . . . . . . . 1 . Robots Hacked 12 | . . . . . . . . 5 2 3 2 Non-combat 2 | . . . . . . . . . 1 . 1 Combat 10 | . . . . . . . . 5 1 3 1 Robot Hacks Applied 14 | . . . . . . . . 5 2 3 4 purge_threat 1 | . . . . . . . . . . . 1 locate_traps 1 | . . . . . . . . . . . 1 map_route 1 | . . . . . . . . . 1 . . find_garrison 1 | . . . . . . . . . . . 1 go_dormant 1 | . . . . . . . . . 1 . . overwrite_iff 2 | . . . . . . . . . . 2 . streamctrl_high 3 | . . . . . . . . 3 . . . formatsys_high 4 | . . . . . . . . 2 . 1 1 Relay Couplers Released 25 | . . . . . . 5 2 7 3 8 . Ejected 3 | . . . . . . . . . 3 . . Machine Destruction 22 | . . . . . . 5 2 7 . 8 . Attached 8 | . . . . . . . . 3 1 2 2 Robots Rewired 1 | . . . . . . . . 1 . . . Allies Hacked . | . . . . . . . . . . . . Hacks Repelled . | . . . . . . . . . . . . Allies | -11 -10 -10 -10 -9 -8 -8 -7 -7 -7 -7 -7 -------- Run | Scr Mat Min Exi Min Mat Gar Fac Gar Fac Gar Fac Total Allies 10 | . 1 . . . . . . 5 . 3 1 Largest Group 3 | . 1 1 1 1 1 1 1 3 1 3 2 Highest-Rated Group 157 | . 57 57 57 57 70 70 93 157 96 133 127 Highest-Rated Ally 96 | . 57 57 57 57 70 70 93 93 96 96 95 Total Orders 6 | . . . . . . . . 4 1 . 1 GOTO 5 | . . . . . . . . 4 . . 1 EXPLORE 1 | . . . . . . . . . 1 . . Ally Attacks 308 | . 31 5 . . 62 25 49 46 46 35 9 Total Damage 10545 | . 1199 29 . 44 1615 642 2477 1652 1544 1033 310 Kills 117 | . 14 3 . 1 24 6 21 16 14 15 3 Allies Corrupted . | . . . . . . . . . . . . Allies Melted . | . . . . . . . . . . . . Intel | -11 -10 -10 -10 -9 -8 -8 -7 -7 -7 -7 -7 ------- Run | Scr Mat Min Exi Min Mat Gar Fac Gar Fac Gar Fac Robot Analysis Total . | . . . . . . . . . . . . Derelict Logs Recovered . | . . . . . . . . . . . . Drone Launches . | . . . . . . . . . . . . Drone Recoveries . | . . . . . . . . . . . . Exploration | -11 -10 -10 -10 -9 -8 -8 -7 -7 -7 -7 -7 ------------- Run | Scr Mat Min Exi Min Mat Gar Fac Gar Fac Gar Fac Turns Passed 9030 | 77 891 472 431 224 1076 676 1513 822 1515 969 364 Spaces Moved 5373 | 43 640 371 357 165 509 299 756 423 859 664 287 Core 4 | 4 . . . . . . . . . . . Treads 1145 | 3 104 . . . 248 299 491 . . . . Legs 1518 | . . . . . . . 265 423 830 . . Wheels 2706 | 36 536 371 357 165 261 . . . 29 664 287 Hover . | . . . . . . . . . . . . Flight . | . . . . . . . . . . . . Fastest Speed 50 | 50 80 110 120 120 130 186 153 150 110 100 100 Average Speed 138 | 93 111 111 120 124 158 189 177 152 148 106 100 Slowest Speed 240 | 160 180 120 120 130 186 190 230 153 240 110 100 Overloaded Moves . | . . . . . . . . . . . . Propulsion Burnouts . | . . . . . . . . . . . . Robots Hopped . | . . . . . . . . . . . . Cave-ins Triggered . | . . . . . . . . . . . . Exploration Rate (%) 46 | 4 97 78 71 33 47 56 19 55 25 62 10 Regions Visited 11 Branch Regions 3 Pre-discovered Areas 3 | . 2 . 1 . . . . . . . . Known Exits Taken 3 | . . . . . 1 . 1 . 1 . . Unknown Exits Taken 5 | 1 1 1 1 1 . . . . . . . Scrap Searched . | . . . . . . . . . . . . Spaces Dug 1 | . . . . 1 . . . . . . . Terrain Destroyed 138 | . . . . 1 . . 32 14 2 14 75 Melee . | . . . . . . . . . . . . Projectile 14 | . . . . 1 . . 8 . 2 2 1 AOE 124 | . . . . . . . 24 14 . 12 74 Actions | -11 -10 -10 -10 -9 -8 -8 -7 -7 -7 -7 -7 --------- Run | Scr Mat Min Exi Min Mat Gar Fac Gar Fac Gar Fac Total 6341 | 64 723 393 359 174 652 354 852 546 1033 851 340 Wait 217 | . 2 . . . 11 . . 7 98 84 15 Move 5362 | 42 639 370 356 164 509 298 755 422 858 662 287 Hop . | . . . . . . . . . . . . Pick Up 88 | 5 11 . 3 2 23 6 15 9 6 6 2 Fast Attach 40 | 7 3 . . . 6 2 8 . 7 4 3 Attach 41 | 1 4 1 . . 9 3 9 4 4 5 1 Detach 3 | 2 . . . . . . 1 . . . . Swap 66 | . 2 . . 3 10 2 8 18 9 8 6 Drop 90 | . 7 . . 1 21 7 18 10 16 5 5 Fire 343 | 7 55 22 . 4 63 29 38 28 35 41 21 Melee 16 | . . . . . . . . 11 . 5 . Ram . | . . . . . . . . . . . . Kick . | . . . . . . . . . . . . Crush 3 | . . . . . . 3 . . . . . Escape Stasis 44 | . . . . . . 4 . 9 . 31 . Rewire 28 | . . . . . . . . 28 . . . Trap . | . . . . . . . . . . . . Miscellaneous . | . . . . . . . . . . . . Route ------- -11/Scrapyard -10/Materials (discovered 5 exits: [*Mat x3] / [*Min x2]) -10/Mines (discovered 2 exits: [*Mat] / *Exi) -10/Exiles -9/Mines -8/Materials (discovered 2 exits: *Fac / Gar) -8/Garrison (discovered 2 exits: *Fac x2) -7/Factory (discovered 4 exits: [*Fac x2] / [*Low] / Gar) -7/Garrison (discovered 2 exits: *Fac x2) -7/Factory (discovered 2 exits: [*Fac] / Gar) -7/Garrison (discovered 2 exits: *Fac x2) -7/Factory History --------- Turn | Location | Event 15 | -11/Scrapyard | Discovered new exit (range 16) 78 | -11/Scrapyard | Entered Materials 170 | -10/Materials | Discovered new exit (range 7) 285 | -10/Materials | Discovered new exit (range 15) 303 | -10/Materials | Build established: Mutant 325 | -10/Materials | Discovered new exit (range 16) 453 | -10/Materials | Discovered new exit (range 16) 513 | -10/Materials | Core integrity fell below 50% 572 | -10/Materials | Discovered new exit (range 15) 969 | -10/Materials | Entered Mines 969 | -10/Mines | Accompanied by 1 ally 1385 | -10/Mines | Core integrity fell below 20% 1416 | -10/Mines | Discovered new exit (range 11) 1435 | -10/Mines | Deemed a non-threat by the Exiles lab entrance 1435 | -10/Mines | Discovered new exit (range 5) 1441 | -10/Mines | Entered Exiles 1441 | -10/Exiles | Accompanied by 1 ally 1475 | -10/Exiles | Met 8R-AWN 1493 | -10/Exiles | Met EX-HEX 1526 | -10/Exiles | Met EX-BIN 1596 | -10/Exiles | Learned location of Zion (-7) 1632 | -10/Exiles | Aligned with FarCom system 1633 | -10/Exiles | Given EX-Vault access code 1662 | -10/Exiles | Opened EX-Vault 1668 | -10/Exiles | Found Firepult 1694 | -10/Exiles | Warned to stay clear of 0b10 Research branches 1729 | -10/Exiles | Met EX-DEC 1858 | -10/Exiles | Discovered new exit (range 14) 1872 | -10/Exiles | Left Exiles lab with Firepult 1872 | -10/Exiles | Entered Mines 1872 | -9/Mines | Accompanied by 1 ally 1925 | -9/Mines | Discovered new exit (range 8) 2096 | -9/Mines | Entered Materials 2096 | -8/Materials | Accompanied by 1 ally 2096 | -8/Materials | Evolved 4 slots: Propulsion x1, Utility x2, Weapon x1 2677 | -8/Materials | Discovered new exit (range 11) 2896 | -8/Materials | First assault squad dispatched 2997 | -8/Materials | Build established: Hauler-Skirmisher 3128 | -8/Materials | Garrison activated, responded to threat 3172 | -8/Materials | Identified exit to Garrison 3172 | -8/Materials | Entered Garrison 3172 | -8/Garrison | Accompanied by 1 ally 3217 | -8/Garrison | Triggered checkpoint 3240 | -8/Garrison | Triggered checkpoint 3254 | -8/Garrison | Triggered checkpoint 3414 | -8/Garrison | Discovered new exit (range 12) 3452 | -8/Garrison | Installed Relay Interface Framework 3586 | -8/Garrison | Discovered new exit (range 8) 3702 | -8/Garrison | Triggered checkpoint 3725 | -8/Garrison | Garrison Relay disabled 3848 | -8/Garrison | Entered Factory 3848 | -7/Factory | Accompanied by 1 ally 3848 | -7/Factory | Evolved 2 slots: Utility x2 4094 | -7/Factory | Found Powered Armor 4120 | -7/Factory | Found Powered Armor 4248 | -7/Factory | First assault squad dispatched 4455 | -7/Factory | Build established: Bothacker-Skirmisher 4467 | -7/Factory | Discovered new exit (range 15) 4965 | -7/Factory | Discovered new exit (range 14) 5210 | -7/Factory | Discovered new exit (range 7) 5326 | -7/Factory | Identified exit to Garrison 5361 | -7/Factory | Entered Garrison 5361 | -7/Garrison | Accompanied by 1 ally 5398 | -7/Garrison | Triggered checkpoint 5463 | -7/Garrison | Garrison Relay disabled 5528 | -7/Garrison | Triggered checkpoint 5538 | -7/Garrison | Triggered checkpoint 5563 | -7/Garrison | Triggered checkpoint 5704 | -7/Garrison | Triggered checkpoint 5744 | -7/Garrison | Triggered checkpoint 5759 | -7/Garrison | Discovered new exit (range 15) 5791 | -7/Garrison | Garrison Relay disabled 5967 | -7/Garrison | Core integrity fell below 50% 6054 | -7/Garrison | Discovered new exit (range 13) 6079 | -7/Garrison | High security lockdown imminent 6159 | -7/Garrison | High security lockdown engaged 6183 | -7/Garrison | Entered Factory 6183 | -7/Factory | Accompanied by 2 allies 6447 | -7/Factory | Build established: Hauler-Mutant 6522 | -7/Factory | Discovered new exit (range 12) 6583 | -7/Factory | First assault squad dispatched 7387 | -7/Factory | Build established: Hauler-Skirmisher 7615 | -7/Factory | Fabricated Centrium Wheel (x2) 7663 | -7/Factory | Identified exit to Garrison 7698 | -7/Factory | Entered Garrison 7698 | -7/Garrison | Accompanied by 1 ally 7802 | -7/Garrison | Triggered checkpoint 7813 | -7/Garrison | Garrison Relay disabled 7989 | -7/Garrison | Triggered checkpoint 7995 | -7/Garrison | Triggered checkpoint 8007 | -7/Garrison | Core integrity fell below 20% 8009 | -7/Garrison | Triggered checkpoint 8044 | -7/Garrison | Lost 3 parts (1u2w) 8065 | -7/Garrison | Triggered checkpoint 8150 | -7/Garrison | Build established: Hauler-Mutant 8277 | -7/Garrison | Lost 3 parts (1n1u1w) 8389 | -7/Garrison | Discovered new exit (range 9) 8463 | -7/Garrison | Discovered new exit (range 15) 8485 | -7/Garrison | Expanded RIF knowledge: Robot Detection 8506 | -7/Garrison | Triggered checkpoint 8537 | -7/Garrison | Garrison Relay disabled 8642 | -7/Garrison | Build established: Bothacker-Skirmisher 8667 | -7/Garrison | Entered Factory 8667 | -7/Factory | Accompanied by 1 ally 9031 | -7/Factory | Destroyed by Y-54 Guardian with Gatling Laser Last Messages --------------- 08890_ Acquired 22 matter. 08891_ N%IU2 VBXBDQNJQ>JOKY3<=ARF:ISEO1W0 08893_ U-05 Engineer builds a Wall. 08914_ S&&JTGUM JX T|07=2N%|CCJV3#90KFYX Z8G/S 08937_ System corrupted: Heat flow error (+291). 08976_ Discarded Hacking Suite. 08987_ System corrupted: Remote Datajack targeting data glitched. 08987_ Jacked Y-54 Guardian... >>find_garrison Pinpointed nearest Garrison Access: (83,161) (added to intel). 08989_ System corrupted: Remote Datajack targeting data glitched. 08989_ Jacked Y-54 Guardian... >>formatsys_high Rerouting network defenses. Erasing system data. Installing primary routines, ETC: 6. 08990_ Reactivated Guardian 4e. 09000_ System corrupted: Matter fused (-5). 09017_ Acquired Flak Cannon. 09027_ QO=Z4MU7OR JPLPVBGL Q2UHNN&4ITHDP&LC G Map ----- +----------------------------------------------------+ | ???????????????????????????????????????# | | ???????????????????????????????????????+ | | ???????????????????????????????????????# " | | ???????????????????????????????????????# " | | ???????????????????G???????????????????### #### " | | ??????????????????????????????????????????????# " | | ??????????????????????????????????????????????# " | | ??????????????????????????????????????????????# " | | ??????????????????????????????????????????????# | | ?????????????????????????????????#####????????# " | | ?????????????????????????????????# ????????# ^" | | ?????????????????????????????????# "????????#^ " | | ?????????????????????????????????# ""???????# " | | ?????????????????????????????????# """??????# " | | ?????????????????????????????????# """??????# " | | ?????????????????????????????????# ??????+ | | ?????????????????????????????????# """""""??# | | ?????????????????????????????????# """""""??# | | ?????????????????????????????????#! """"""" ?#### | | ????????????????????????????????## """"""" #??? | | ????????????????????????????????# #??? | | ?????????????????????????????????# = * #??? | | ?????????????????????###??##########+############# | | ????????????????????+ | | ??????????????????????##Y######## ######## | | ??????????????????????# @ ## #??????? | | ??????????????????????# """" !## #?###### | | ??????????????????????# """" @## /] #?# | | ??????????????????????+ """" # ]] ### | | ??????????????????????# """" + | | ??????????????????????# """" # [ ### | | ??????????????????????+ """" # #?# | | ??????????????????????# """" # ####+###?###+## | | ??????????????????????# # +?! ??? | | ??????????????????????########## # ## = | | ?????????????????????????????? # """" ## | | ????????????????????????????? ###### """" ## | | ???????????????????????????? ??????# """" ## | | ??????????????????????????? ???????# """" ## | | ??????????????????????????#????????############### | | ?????????????????????????????????????????????????? | | ?????????????????????????????????????????????????? | | ?????????????????????????????????????????????????? | | | | | | | | | | | | | | | +----------------------------------------------------+ Best States ------------- Heat Dissipation 61 Energy Generation 18 Energy Capacity 310 Matter Stores 300 Matter Capacity 300 Sight Range 16 Terrain Scan Density 10 Armor Coverage 625 Resistance: KI 30 Evasion (%) 44 Targeting Accuracy 8 Recoil Reduction 3 Offensive Hacking 10 Defensive Hacking 10 Item Schematics ----------------- Fission Core | -7/Factory | Scanalyzed Titanium Leg | -7/Factory | Scanalyzed Robot Schematics ------------------ None Fabricated ------------ Centrium Wheel | x2 | -7/Factory | Preloaded Alien Tech Used ----------------- None Achievements -------------- None Challenges ------------ None Game ------ Seed ManeuveringBombDriver Manual? 0 Play Time 01:14:10 Cumulative 375.9 hours Start 2020.04.03 @ 19:02:17 End 2020.04.03 @ 20:20:14 Sessions 1 Manual Loads 0 Difficulty Rogue Special Mode AFD2020/Player2 Game No. 263 Rogue 263 Adventurer 0 Explorer 0 Win Type - Total 4 Types 4/0/0/0/0/0/0 Lore% 82 Gallery% 84 Achievement% 63 Wizard Run 0 Options --------- ASCII 0 Keyboard 0 Movement Mouse Keybinds 1 Fullscreen 2 Font 24/Smallcaps Map View 76x50 Tactical HUD 1 Map Filters NONE Filters NONE Steam 1 RUN: 9b4cacb2-7656-4728-9dbe-3d7633d74af3